[Event "AICF Women GM 2018"]
[Site "Mumbai"]
[Date "2018.06.13"]
[Round "3"]
[White "Rakshitta Ravi"]
[Black "Divya Deshmukh"]
[Result "0-1"]
[ECO "C13"]
[WhiteElo "2067"]
[BlackElo "2138"]
[Annotator "NA"]
[PlyCount "72"]
[EventDate "2018.??.??"]
[EventType "tourn"]
[EventCountry "IND"]
[SourceTitle "playchess.com"]
[Source "ChessBase"]
[SourceQuality "1"]
[TimeControl "40/5400+30:1800+30"]

1. e4 {[%emt 0:00:42]} e6 {[%emt 0:00:04]} 2. d4 {[%emt 0:00:09]} d5 {[%emt 0:00:04]} 3. Nc3 {[%emt 0:00:05]} Nf6 {[%emt 0:00:03]} 4. Bg5 {[%emt 0:00:06]} Be7 {[%emt 0:00:05]} 5. e5 {[%emt 0:00:06]} Nfd7 {[%emt 0:00:03]} 6. h4 {[%emt 0:00:05]} a6 {[%emt 0:00:07] LiveBook: 117 Partien} 7. f4 {[%emt 0:02:43] C14: French: Classical System: 4 Bg5 Be7 main line} (7. Qg4 h5 8. Qg3 Bxg5 9. hxg5 c5 10. dxc5 g6 11. O-O-O Nxc5 12. f4 b5 13. Qe3 Qb6 14. Kb1 Nc6 15. Nf3 b4 {1-0 (33) Perez Candelario,M (2569)-Arribas Lopez,A (2559) Linares 2015}) 7... c5 {[%emt 0:01:40]} 8. dxc5 {[%emt 0:03:48]} Nxc5 {[%emt 0:01:57]} (8... Nc6 $11) 9. Bxe7 {[%emt 0:01:24]} Qxe7 {[%emt 0:00:26]} 10. Qg4 {[%emt 0:00:05]} O-O {[%emt 0:01:28]} 11. Nf3 {[%emt 0:01:36]} f5 $146 {[%emt 0:04:57]} ({Predecessor:} 11... b5 12. h5 b4 13. Ne2 Ne4 14. Ned4 Bb7 {1-0 (39) Neubauer,J-Wambach,J Bayern 2000}) 12. Qg3 {[%emt 0:14:44]} (12. Qh5 $11) 12... Ne4 {[%emt 0:02:01]} 13. Nxe4 {[%emt 0:00:57]} fxe4 {[%emt 0:01:23]} 14. Nd2 {[%emt 0:07:59]} (14. Nd4 $17 {ist eine bessere Verteidigung.}) 14... Qf7 {[%emt 0:01:18]} 15. O-O-O {[%emt 0:08:10]} (15. c4 $17) 15... Nc6 {[%emt 0:03:07]} 16. Nb3 {[%emt 0:06:39]} b5 $19 {[%emt 0:03:29]} 17. Nc5 {[%emt 0:22:37]} Ra7 {[%emt 0:01:31]} 18. c3 {[%emt 0:14:39]} Rc7 {[%emt 0:02:53]} 19. Qe3 {[%emt 0:04:25]} b4 {[%emt 0:07:06]} 20. c4 {[%emt 0:02:24]} Na5 {[%emt 0:01:02]} 21. Kb1 {[%emt 0:01:24]} Qxf4 {[%emt 0:03:54]} 22. Qxf4 {[%emt 0:00:01]} Rxf4 {[%emt 0:00:08]} 23. Nxe6 {[%emt 0:00:37]} Bxe6 {[%emt 0:01:44]} 24. cxd5 {[%emt 0:00:01]} Rd7 {[%emt 0:01:07]} 25. g3 {[%emt 0:06:28]} Rf2 {[%emt 0:01:06]} 26. Bh3 {[%emt 0:00:29]} Bxh3 {[%emt 0:00:12]} 27. Rxh3 {[%emt 0:00:03]} Rf5 {[%emt 0:00:51]} 28. e6 {[%emt 0:00:56]} Rdxd5 {[%emt 0:00:17]} 29. Rc1 {[%emt 0:00:06]} Kf8 {[%emt 0:00:14]} 30. g4 {[%emt 0:00:10]} Rf2 {[%emt 0:00:05]} 31. Re3 {[%emt 0:01:12]} Re5 {[%emt 0:01:29]} 32. Rc8+ {[%emt 0:00:15]} Ke7 {[%emt 0:00:06]} 33. Rc7+ {[%emt 0:00:04]} Kxe6 {[%emt 0:00:11]} 34. Rxg7 {[%emt 0:00:09]} Rf1+ {[%emt 0:00:02]} 35. Kc2 {[%emt 0:00:09]} Rc5+ {[%emt 0:00:45]} 36. Kd2 {[%emt 0:00:03]} Nc4+ {[%emt 0:00:05]} 0-1

[Event "AICF Women GM 2018"]
[Site "Mumbai"]
[Date "2018.06.14"]
[Round "4"]
[White "Tokhirjonova, Gulrukhbegim"]
[Black "Rakshitta Ravi"]
[Result "1-0"]
[ECO "D35"]
[WhiteElo "2379"]
[BlackElo "2067"]
[Annotator "NA"]
[PlyCount "131"]
[EventDate "2018.??.??"]
[EventType "tourn"]
[EventCountry "IND"]
[SourceTitle "playchess.com"]
[Source "ChessBase"]
[SourceQuality "1"]
[TimeControl "40/5400+30:1800+30"]

1. d4 {[%emt 0:00:00]} Nf6 {[%emt 0:01:52]} 2. c4 {[%emt 0:00:00]} e6 {[%emt 0:00:07]} 3. Nc3 {[%emt 0:00:08]} d5 {[%emt 0:00:07]} 4. cxd5 {[%emt 0:00:36]} exd5 {[%emt 0:00:07]} 5. Bg5 {[%emt 0:00:10]} Nbd7 {[%emt 0:00:11]} 6. e3 {[%emt 0:00:19]} Be7 {[%emt 0:00:24]} 7. Bd3 {[%emt 0:00:24]} c6 {[%emt 0:00:08]} 8. Qc2 {[%emt 0:02:23]} h6 {[%emt 0:00:50]} 9. Bh4 {[%emt 0:00:50]} O-O {[%emt 0:00:18]} 10. Nf3 {[%emt 0:00:29]} Re8 {[%emt 0:02:04]} 11. O-O {[%emt 0:05:46]} Ne4 {[%emt 0:03:29]} 12. Bxe7 {[%emt 0:02:27]} Qxe7 {[%emt 0:00:14] LiveBook: 114 Games} 13. Rab1 {[%emt 0:00:34]} Ng5 {[%emt 0:05:42]} 14. Nxg5 {[%emt 0:09:39] D36: Queen's Gambit Declined: Exchange Variation: Main line (5 Bg5 c6 6 Qc2)} (14. Nd2 Nf6 15. b4 a6 16. a4 Bd7 17. Nb3 Qd6 18. Be2 Bg4 19. Nc5 Re7 20. Rfe1 Rae8 21. Rb2 h5 22. Qd1 g6 {½-½ (73) Kursova,M (2267)-Arakhamia Grant,K (2393) Chakvi 2015}) 14... Qxg5 {[%emt 0:00:14]} 15. e4 {[%emt 0:00:18]} dxe4 $146 {[%emt 0:19:20]} ({Predecessor:} 15... Nf6 16. e5 Nh5 17. Ne2 Nf4 18. Nxf4 Qxf4 19. Rfd1 Kh8 20. Qc3 Bf5 21. g3 Qg5 {½-½ (52) Kubikova,H (2145)-Seifarth,R (2235) Czechia 1996}) 16. Nxe4 {[%emt 0:00:39]} Qf4 {[%emt 0:02:34]} 17. Rfe1 {[%emt 0:01:14]} Rd8 {[%emt 0:01:35]} 18. g3 {[%emt 0:24:29]} Qc7 {[%emt 0:03:44]} 19. Rbd1 {[%emt 0:10:23]} Nb6 {[%emt 0:03:40]} 20. Nc3 {[%emt 0:00:10]} Bg4 {[%emt 0:02:35]} 21. Be2 {[%emt 0:04:00]} Qd7 {[%emt 0:11:41]} 22. Bxg4 {[%emt 0:03:00]} Qxg4 {[%emt 0:00:24]} 23. Re7 {[%emt 0:01:57]} Rd7 {[%emt 0:04:47]} 24. Re4 {[%emt 0:02:39]} Qg6 {[%emt 0:01:35]} 25. Qe2 {[%emt 0:00:30]} Kh7 {[%emt 0:04:08]} 26. h4 {[%emt 0:02:54]} Rad8 {[%emt 0:04:17]} 27. h5 {[%emt 0:00:52]} Qf6 {[%emt 0:02:35]} 28. Rf4 {[%emt 0:00:40]} Qe7 {[%emt 0:01:01]} 29. Qf3 {[%emt 0:03:01]} Kg8 {[%emt 0:02:49]} 30. Re4 {[%emt 0:03:34]} Qf8 {[%emt 0:03:11]} 31. Qe2 {[%emt 0:05:13]} Nd5 {[%emt 0:09:10]} 32. Nxd5 {[%emt 0:00:46]} Rxd5 {[%emt 0:00:03]} 33. Re7 {[%emt 0:07:26]} c5 {[%emt 0:04:39]} 34. Rxb7 {[%emt 0:00:27]} cxd4 {[%emt 0:01:19]} 35. Rd3 {[%emt 0:00:06]} Qc5 {[%emt 0:00:57]} 36. Qe7 {[%emt 0:04:42]} Qc1+ {[%emt 0:04:20]} 37. Kg2 {[%emt 0:00:02]} R5d7 {[%emt 0:00:07]} 38. Rxd7 {[%emt 0:02:49]} Qc6+ {[%emt 0:00:01]} 39. Kh2 {[%emt 0:00:32]} Qxd7 {[%emt 0:01:44]} 40. Qxd7 {[%emt 0:00:18]} Rxd7 {[%emt 0:30:03]} 41. g4 {[%emt 0:30:31]} Rc7 {[%emt 0:01:15]} 42. Rxd4 {[%emt 0:00:00]} Rc2 {[%emt 0:00:00]} 43. Rb4 {[%emt 0:00:00]} Rxf2+ {[%emt 0:00:00]} 44. Kg3 {[%emt 0:00:00]} Rd2 {[%emt 0:00:00]} 45. Rb8+ {[%emt 0:00:00]} Kh7 {[%emt 0:00:00]} 46. Rb7 {[%emt 0:00:00]} a5 {[%emt 0:00:00]} 47. Kf3 {[%emt 0:00:00]} Rd5 {[%emt 0:00:00]} (47... a4 $11) 48. Rxf7 $16 {[%emt 0:00:00]} Rb5 {[%emt 0:00:00]} 49. b3 {[%emt 0:00:00]} a4 50. bxa4 {[%emt 0:00:00]} Rb2 {[%emt 0:00:00]} 51. Rf4 {[%emt 0:00:00]} Rxa2 {[%emt 0:00:00]} 52. Rb4 {[%emt 0:00:00]} g6 53. hxg6+ Kxg6 {[%emt 0:00:00]} 54. Ke4 {[%emt 0:00:00]} h5 {[%emt 0:00:00]} 55. gxh5+ Kxh5 {[%emt 0:00:00]} 56. Kd5 {[%emt 0:05:06]} Kg5 {[%emt 0:00:00]} 57. Kc6 {[%emt 0:00:26]} Kf5 {[%emt 0:00:00]} 58. Rb5+ {[%emt 0:00:50]} Ke6 {[%emt 0:00:00]} 59. a5 {[%emt 0:00:03]} Rc2+ {[%emt 0:00:00]} 60. Kb6 {[%emt 0:01:10]} Kd7 {[%emt 0:00:43]} 61. a6 {[%emt 0:00:01]} Rc6+ {[%emt 0:06:51]} 62. Ka5 {[%emt 0:00:02]} Rc7 {[%emt 0:00:44]} 63. Rh5 {[%emt 0:00:59]} Kc6 {[%emt 0:01:30]} 64. Rh6+ {[%emt 0:00:25]} Kd7 {[%emt 0:00:15]} 65. Rh7+ {[%emt 0:00:35]} Kc8 {[%emt 0:01:50]} 66. a7 {[%emt 0:00:36]} 1-0

[Event "AICF Women GM 2018"]
[Site "Mumbai"]
[Date "2018.06.14"]
[Round "4"]
[White "Vo, Thi Kim Phung"]
[Black "Zozulia, Anna"]
[Result "1/2-1/2"]
[ECO "E92"]
[WhiteElo "2376"]
[BlackElo "2314"]
[Annotator "NA"]
[PlyCount "86"]
[EventDate "2018.??.??"]
[EventType "tourn"]
[EventCountry "IND"]
[SourceTitle "playchess.com"]
[Source "ChessBase"]
[SourceQuality "1"]
[TimeControl "40/5400+30:1800+30"]

1. d4 {[%emt 0:00:00]} Nf6 {[%emt 0:00:13]} 2. c4 {[%emt 0:00:00]} g6 {[%emt 0:00:13]} 3. Nc3 {[%emt 0:00:00]} Bg7 {[%emt 0:00:06]} 4. e4 {[%emt 0:00:01]} d6 {[%emt 0:00:05]} 5. Nf3 {[%emt 0:00:10]} O-O {[%emt 0:00:04]} 6. Be2 {[%emt 0:00:15]} e5 {[%emt 0:00:22]} 7. Be3 {[%emt 0:00:15]} exd4 {[%emt 0:05:40]} 8. Nxd4 {[%emt 0:00:15]} Re8 {[%emt 0:00:03]} 9. f3 {[%emt 0:00:56]} Nbd7 {[%emt 0:00:21]} 10. O-O {[%emt 0:01:32]} c6 {[%emt 0:00:03]} 11. Qd2 {[%emt 0:02:29]} a5 {[%emt 0:01:47] LiveBook: 11 Games E94: Königsindisch (Klassisches System)} (11... a6 12. Rad1 Ne5 13. Bf2 b5 14. cxb5 axb5 15. Nc2 Bf8 16. Kh1 Be6 17. Bh4 Be7 18. Nd4 b4 19. Nxe6 bxc3 20. Nxd8 cxd2 {0-1 (86) Urkedal,F (2572)-Ehlvest,J (2536) chess.com INT 2018}) 12. Rad1 {[%emt 0:01:05]} Qc7 {[%emt 0:01:40]} 13. Rfe1 {[%emt 0:00:49]} Nc5 {[%emt 0:10:31]} 14. b3 {[%emt 0:04:36]} Bd7 {[%emt 0:10:19]} 15. Bf1 {[%emt 0:03:16]} Rad8 {[%emt 0:04:10]} 16. Qf2 {[%emt 0:01:27]} Bc8 {[%emt 0:01:41]} 17. g3 $146 {[%emt 0:01:49]} ({Vorgänger:} 17. Rd2 Nfd7 18. Red1 Nf8 19. Nde2 Nfe6 20. Nd4 Nf8 21. Nde2 Nfe6 22. Nd4 Nf8 23. Nde2 {½-½ (23) Liptay,L-Bednarski,J Krakow 1964}) 17... h6 {[%emt 0:01:22]} 18. Bg2 {[%emt 0:06:13]} Kh7 {[%emt 0:14:45]} 19. Kh1 {[%emt 0:03:02]} Qb8 {[%emt 0:07:22]} 20. Qc2 {[%emt 0:07:40]} Qc7 {[%emt 0:03:37]} 21. a3 {[%emt 0:01:39]} Re7 {[%emt 0:02:11]} 22. b4 {[%emt 0:02:55]} axb4 {[%emt 0:01:06]} 23. axb4 {[%emt 0:00:02]} Ne6 {[%emt 0:00:14]} 24. Nxe6 {[%emt 0:25:04]} Bxe6 {[%emt 0:01:28]} 25. Na4 {[%emt 0:01:12]} Nd7 {[%emt 0:01:52]} 26. f4 {[%emt 0:00:20]} Ra8 {[%emt 0:22:27]} 27. c5 {[%emt 0:08:34]} dxc5 {[%emt 0:00:04]} 28. Nxc5 {[%emt 0:03:38]} Nxc5 {[%emt 0:00:24]} 29. Qxc5 {[%emt 0:00:18]} Rd7 {[%emt 0:03:17]} 30. f5 {[%emt 0:05:58]} Rxd1 {[%emt 0:00:58]} 31. Rxd1 {[%emt 0:00:21]} Bb3 {[%emt 0:00:17]} 32. Bf4 {[%emt 0:04:42]} Qc8 {[%emt 0:00:12]} 33. Rb1 {[%emt 0:01:22]} Qd7 {[%emt 0:01:36]} 34. fxg6+ {[%emt 0:04:49]} fxg6 {[%emt 0:00:07]} 35. Qd6 {[%emt 0:00:42]} Qxd6 {[%emt 0:03:02]} 36. Bxd6 {[%emt 0:00:02]} Ba2 {[%emt 0:03:53]} 37. Rc1 {[%emt 0:02:11]} Bb2 $11 {[%emt 0:00:32]} 38. Rc2 {[%emt 0:01:44]} Bd4 {[%emt 0:00:18]} 39. h4 {[%emt 0:00:55]} Kg7 {[%emt 0:00:42]} 40. Rd2 {[%emt 0:00:42]} Bc3 {[%emt 0:30:29]} 41. Rc2 {[%emt 0:30:14]} Bd4 {[%emt 0:00:00]} 42. Rd2 {[%emt 0:00:00]} Bc3 {[%emt 0:00:00]} 43. Rc2 {[%emt 0:00:00]} Bd4 1/2-1/2

[Event "AICF Women GM 2018"]
[Site "Mumbai"]
[Date "2018.06.14"]
[Round "4"]
[White "Tomilova, Elena"]
[Black "Monnisha G K"]
[Result "1-0"]
[ECO "A45"]
[WhiteElo "2334"]
[BlackElo "2295"]
[Annotator "NA"]
[PlyCount "63"]
[EventDate "2018.??.??"]
[EventType "tourn"]
[EventCountry "IND"]
[SourceTitle "playchess.com"]
[Source "ChessBase"]
[SourceQuality "1"]
[TimeControl "40/5400+30:1800+30"]

{[%evp 8,60,31,17,1,20,32767,32767,-7,19,32767,32767,16,24,123,32767,248,301,300,324,32767,162,387,444,540,683,32767,32767,32767,32767,32767,32767,32767,304,299,32767,32767,32767,310,236,217,32767,32767,212,243,32767,32767,171,32767,32767,32767,32767,32767,32767,922]} 1. d4 {[%emt 0:00:00]} Nf6 {[%emt 0:00:26]} 2. Bg5 {[%emt 0:00:00]} Ne4 {[%emt 0:00:05]} 3. Bf4 {[%emt 0:00:00]} c5 {[%emt 0:00:10]} 4. f3 {[%emt 0:00:00]} Qa5+ {[%emt 0:00:10]} 5. c3 {[%emt 0:00:00]} Nf6 $1 {[%emt 0:00:10]} 6. d5 {[%emt 0:00:03]} Qb6 {[%emt 0:00:49]} 7. b3 {[%emt 0:00:07]} e6 {[%emt 0:00:32]} 8. e4 {[%emt 0:00:15]} exd5 {[%emt 0:02:18] A45: Trompowsky Attack} 9. exd5 {[%emt 0:00:06]} Bd6 {[%emt 0:04:34]} 10. Bg5 {[%emt 0:00:14] LiveBook: 51 Games} c4 {[%emt 0:03:12]} (10... Be7 $14) (10... Be5 11. f4 Bc7 12. Nf3 O-O 13. Be2 c4 14. bxc4 Ng4 15. Nd4 Ne3 16. Qd2 {0-1 (27) Kryakvin,D (2583)-Sarana,A (2541) Sochi 2017}) 11. Bxc4 $146 {[%emt 0:05:50]} ({Predecessor:} 11. Bxf6 gxf6 12. Qe2+ Kd8 13. Qxc4 Re8+ 14. Ne2 Qe3 15. Nd2 b5 16. Qd4 Qxd4 17. cxd4 Bb4 18. O-O-O d6 19. Kb2 Bb7 20. Ng3 Nd7 21. Nde4 Bxd5 22. Bxb5 Re6 23. Nf5 {1-0 (23) Laffranchise,L-Claude,D France 1997}) 11... Bxh2 {[%emt 0:04:39]} (11... Be7 $16) 12. Ne2 {[%emt 0:02:35]} Be5 {[%emt 0:04:29]} 13. Qd3 {[%emt 0:02:00]} Na6 {[%emt 0:09:54]} 14. Bxa6 {[%emt 0:02:42]} (14. f4 $142 Bc7 15. Nd2) 14... bxa6 $2 {[%emt 0:01:39]} (14... Qxa6 $16 15. Qe3 Kd8) 15. Nd2 {[%emt 0:02:27]} Bd6 {[%emt 0:11:44]} 16. Nc4 {[%emt 0:03:51]} Qc5 {[%emt 0:02:11]} 17. Bxf6 {[%emt 0:01:13]} gxf6 {[%emt 0:00:12]} 18. Rxh7 {[%emt 0:01:04]} Rxh7 {[%emt 0:00:10]} 19. Qxh7 {[%emt 0:00:02]} Bb7 {[%emt 0:00:59]} 20. Qe4+ {[%emt 0:05:25]} Kf8 {[%emt 0:01:55]} 21. O-O-O {[%emt 0:04:37]} Re8 {[%emt 0:00:24]} 22. Qd3 {[%emt 0:00:15]} a5 {[%emt 0:01:45]} 23. Rh1 {[%emt 0:00:31]} Bxd5 {[%emt 0:07:49]} 24. Nxd6 {[%emt 0:03:41]} Qxd6 {[%emt 0:01:10]} 25. Nd4 {[%emt 0:17:24]} Qf4+ $18 {[%emt 0:05:03]} 26. Kb2 {[%emt 0:01:09]} Be6 {[%emt 0:06:31]} 27. a4 {[%emt 0:25:22]} Qg3 {[%emt 0:02:07]} 28. Qd2 {[%emt 0:02:41]} Qe5 {[%emt 0:10:09]} 29. f4 {[%emt 0:02:01]} Qd5 {[%emt 0:01:28]} 30. f5 {[%emt 0:01:17]} Bxf5 {[%emt 0:01:03]} 31. Rh8+ {[%emt 0:00:07]} Ke7 {[%emt 0:00:25]} 32. Rh5 {[%emt 0:00:15]} 1-0

[Event "AICF Women GM 2018"]
[Site "Mumbai"]
[Date "2018.06.14"]
[Round "4"]
[White "Vantika Agrawal"]
[Black "Srija, Seshadri"]
[Result "0-1"]
[ECO "A06"]
[WhiteElo "2279"]
[BlackElo "2207"]
[Annotator "NA"]
[PlyCount "79"]
[EventDate "2018.??.??"]
[EventType "tourn"]
[EventCountry "IND"]
[SourceTitle "playchess.com"]
[Source "ChessBase"]
[SourceQuality "1"]
[TimeControl "40/5400+30:1800+30"]

1. Nf3 {[%emt 0:00:00]} d5 {[%emt 0:00:24]} 2. g3 {[%emt 0:00:02]} Nf6 {[%emt 0:00:10]} 3. Bg2 {[%emt 0:00:05]} c5 {[%emt 0:00:07]} 4. O-O {[%emt 0:00:58]} Nc6 {[%emt 0:00:15]} 5. d4 {[%emt 0:01:08]} cxd4 {[%emt 0:00:21]} 6. Nxd4 {[%emt 0:00:31]} e5 {[%emt 0:00:09]} 7. Nxc6 {[%emt 0:00:33]} bxc6 {[%emt 0:00:05]} 8. c4 {[%emt 0:01:50]} Be6 {[%emt 0:00:10]} 9. cxd5 {[%emt 0:01:56] D02: 1 d4 d5 2 Nf3 sidelines, including 2...Nf6 3 g3 and 2...Nf6 3 Bf4} (9. Qa4 Qd7 10. Nc3 Rc8 11. cxd5 cxd5 12. Qxd7+ Kxd7 13. Rd1 Bc5 14. Nxd5 Nxd5 15. Bxd5 Bxd5 16. Rxd5+ Ke6 {½-½ (16) Andersen,M (2605)-Kravtsiv,M (2685) Batumi 2018}) 9... cxd5 {[%emt 0:00:09]} 10. Nc3 {[%emt 0:01:14]} Qd7 {[%emt 0:02:53]} 11. Bg5 {[%emt 0:09:54]} Rd8 {[%emt 0:00:51]} 12. e4 {[%emt 0:33:21]} d4 {[%emt 0:17:17] [#]} 13. Nd5 $1 {[%emt 0:10:31]} Bxd5 {[%emt 0:05:08]} 14. exd5 {[%emt 0:04:32]} h6 $146 {[%emt 0:03:12]} ({Predecessor:} 14... Be7 15. Re1 h6 16. Bxf6 Bxf6 17. Qxd4 {1-0 (30) Bogdanovski,V (2431)-Hadzi Manev,L (2042) Struga 2014}) 15. Bxf6 {[%emt 0:05:16]} gxf6 {[%emt 0:00:02]} 16. f4 {[%emt 0:22:52]} Bg7 {[%emt 0:00:28]} 17. Qh5 {[%emt 0:01:35]} O-O {[%emt 0:03:10]} 18. fxe5 {[%emt 0:02:05]} fxe5 {[%emt 0:00:05]} 19. Rf5 {[%emt 0:00:25]} Rc8 {[%emt 0:09:36]} 20. Be4 {[%emt 0:00:30]} d3 {[%emt 0:17:33]} 21. Qd1 {[%emt 0:00:32]} Qb5 {[%emt 0:00:56]} 22. Bxd3 {[%emt 0:00:37]} Qxd5 {[%emt 0:03:51]} 23. Qe2 {[%emt 0:00:29]} Qd4+ {[%emt 0:01:58]} 24. Rf2 {[%emt 0:00:30]} e4 {[%emt 0:04:32]} 25. Ba6 {[%emt 0:00:30]} Rc6 {[%emt 0:02:52]} 26. Rd1 {[%emt 0:00:30]} Qb6 {[%emt 0:00:06]} 27. Bb5 {[%emt 0:00:27]} e3 {[%emt 0:02:30]} 28. Rf5 {[%emt 0:00:34]} Rc7 {[%emt 0:02:28]} 29. b3 {[%emt 0:00:28]} Rfc8 {[%emt 0:01:42]} 30. Bc4 {[%emt 0:00:26]} Re7 {[%emt 0:03:08]} 31. Rdf1 {[%emt 0:00:33]} Rcc7 {[%emt 0:00:07]} 32. R1f4 {[%emt 0:00:33]} Rcd7 {[%emt 0:01:28]} 33. Bd5 {[%emt 0:00:27]} Qd8 {[%emt 0:01:51]} 34. Bc4 {[%emt 0:00:35]} Rd2 {[%emt 0:01:17]} 35. Rxf7 {[%emt 0:00:27]} Rxf7 {[%emt 0:02:45]} 36. Rxf7 {[%emt 0:00:26]} Kh8 {[%emt 0:01:29]} 37. Qg4 {[%emt 0:00:22]} Bd4 $16 {[%emt 0:04:48] [#]} 38. Be2 $1 {[%emt 0:00:40]} Qa8 {[%emt 0:06:36]} 39. Qe6 {[%emt 0:00:32]} Rd1+ {[%emt 0:00:30] Qd7 Rd2} 40. Bxd1 0-1

[Event "AICF Women GM 2018"]
[Site "Mumbai"]
[Date "2018.06.14"]
[Round "4"]
[White "Divya Deshmukh"]
[Black "Nakhbayeva, Guliskhan"]
[Result "0-1"]
[ECO "C11"]
[WhiteElo "2138"]
[BlackElo "2323"]
[Annotator "NA"]
[PlyCount "46"]
[EventDate "2018.??.??"]
[EventType "tourn"]
[EventCountry "IND"]
[SourceTitle "playchess.com"]
[Source "ChessBase"]
[SourceQuality "1"]
[TimeControl "40/5400+30:1800+30"]

{[%evp 12,35,-16,32767,32767,-29,-28,32767,-8,-82,-45,-24,-11,32767,-24,-55,-36,-1,-17,-38,32767,0,0,-68,-65,-69]} 1. e4 {[%emt 0:00:00]} e6 {[%emt 0:00:24]} 2. Nf3 {[%emt 0:00:00]} d5 {[%emt 0:00:16]} 3. Nc3 {[%emt 0:00:00]} Nf6 {[%emt 0:01:21]} 4. e5 {[%emt 0:00:00]} Nfd7 {[%emt 0:00:06]} 5. d4 {[%emt 0:00:00]} c5 {[%emt 0:00:08]} 6. dxc5 {[%emt 0:00:04]} Nc6 {[%emt 0:00:41]} 7. Bf4 {[%emt 0:00:05]} Nxc5 {[%emt 0:02:33]} 8. Bd3 {[%emt 0:07:32]} Be7 {[%emt 0:01:50] LiveBook: 72 Partien C11: French: Classical System: 4 e5 and 4 Bg5 dxe4} 9. Qd2 {[%emt 0:03:29]} O-O $146 {[%emt 0:06:23]} ({Predecessor:} 9... Nxd3+ 10. Qxd3 Nb4 11. Qd2 d4 12. Ne2 d3 13. Ned4 Nxc2+ 14. Nxc2 dxc2 15. Qxc2 Qa5+ 16. Bd2 {0-1 (35) Aleksic,N (2393)-Stojanovic,M (2504) Montecatini Terme 2004}) 10. h4 {[%emt 0:03:33]} (10. O-O $11 {keeps the balance.}) 10... Nxd3+ {[%emt 0:02:44]} 11. Qxd3 {[%emt 0:00:50]} f6 {[%emt 0:01:14]} 12. exf6 {[%emt 0:03:39]} Bxf6 {[%emt 0:13:29]} 13. Bg5 {[%emt 0:01:44]} Bd7 {[%emt 0:01:35]} (13... Bxc3+ $5 14. Qxc3 Qd6 $15) 14. O-O-O {[%emt 0:02:38]} Be8 {[%emt 0:03:05]} 15. Qe2 {[%emt 0:02:38]} Qd6 {[%emt 0:09:07]} 16. Bxf6 {[%emt 0:04:42]} Rxf6 {[%emt 0:01:55]} 17. Kb1 {[%emt 0:00:13]} (17. Rd2 $11) 17... Qf4 {[%emt 0:01:31]} 18. Nh2 $15 {[%emt 0:28:11]} Bg6 {[%emt 0:15:33]} 19. h5 {[%emt 0:18:33]} Bf5 {[%emt 0:05:59]} 20. g4 {[%emt 0:08:14]} d4 {[%emt 0:02:57]} 21. gxf5 dxc3 22. Ng4 {[%emt 0:11:19]} Qb4 {[%emt 0:02:31]} 23. Nxf6+ {[%emt 0:00:04]} Kh8 {[%emt 0:00:08]} 0-1

[Event "AICF Women GM 2018"]
[Site "Mumbai"]
[Date "2018.06.15"]
[Round "6"]
[White "Vo, Thi Kim Phung"]
[Black "Nakhbayeva, Guliskhan"]
[Result "1/2-1/2"]
[ECO "E35"]
[WhiteElo "2376"]
[BlackElo "2323"]
[Annotator "NA"]
[PlyCount "67"]
[EventDate "2018.??.??"]
[EventType "tourn"]
[EventCountry "IND"]
[SourceTitle "playchess.com"]
[Source "ChessBase"]
[SourceQuality "1"]
[TimeControl "40/5400+30:1800+30"]

1. d4 {[%emt 0:00:00]} e6 {[%emt 0:00:19]} 2. c4 {[%emt 0:00:00]} Nf6 {[%emt 0:00:09]} 3. Nc3 {[%emt 0:00:00]} Bb4 {[%emt 0:00:05]} 4. Qc2 {[%emt 0:00:00]} d5 {[%emt 0:00:05]} 5. cxd5 {[%emt 0:00:13]} exd5 {[%emt 0:00:04]} 6. Bg5 {[%emt 0:00:06]} O-O {[%emt 0:00:12]} 7. Nf3 {[%emt 0:00:08]} h6 {[%emt 0:00:05]} 8. Bh4 {[%emt 0:00:16]} c5 {[%emt 0:00:07]} 9. dxc5 {[%emt 0:00:06]} Be6 {[%emt 0:00:46]} 10. e3 {[%emt 0:01:04]} Nbd7 {[%emt 0:00:12]} 11. Nd4 {[%emt 0:01:39]} Bxc5 {[%emt 0:12:34]} 12. Nxe6 {[%emt 0:05:53]} fxe6 {[%emt 0:00:04]} 13. Be2 {[%emt 0:00:22]} Rc8 {[%emt 0:00:47]} 14. O-O {[%emt 0:00:28]} a6 {[%emt 0:05:58]} 15. Rac1 {[%emt 0:02:57]} Qa5 {[%emt 0:03:58]} 16. a3 {[%emt 0:10:41]} Bd6 $11 {[%emt 0:03:34]} 17. Qb3 {[%emt 0:09:08]} Rc7 {[%emt 0:08:45]} 18. Bxf6 {[%emt 0:05:17]} Nxf6 {[%emt 0:06:40]} 19. e4 {[%emt 0:01:43]} Kh8 {[%emt 0:00:12]} 20. exd5 {[%emt 0:00:18]} exd5 {[%emt 0:00:10]} 21. Rcd1 {[%emt 0:00:40]} d4 {[%emt 0:00:32]} 22. Rxd4 {[%emt 0:01:26]} Qe5 {[%emt 0:04:39]} 23. Rh4 {[%emt 0:04:49]} Rxc3 {[%emt 0:00:13]} 24. Qxc3 {[%emt 0:00:11]} Qxe2 {[%emt 0:00:14]} 25. Re1 {[%emt 0:01:11]} Qb5 {[%emt 0:01:13]} 26. Qd2 {[%emt 0:04:11]} Qc6 {[%emt 0:11:02]} 27. g3 {[%emt 0:03:27]} Bc5 {[%emt 0:02:32]} 28. Rf4 {[%emt 0:09:00]} Rc8 {[%emt 0:07:27]} 29. Qd3 {[%emt 0:05:21]} Bd6 {[%emt 0:06:17]} 30. Rd4 {[%emt 0:01:09]} Bc5 {[%emt 0:00:09]} 31. Rf4 {[%emt 0:00:07]} Bd6 {[%emt 0:00:12]} 32. Rd4 {[%emt 0:00:05]} Bc5 {[%emt 0:00:07]} 33. Rf4 {[%emt 0:00:05]} Bd6 {[%emt 0:00:03]} 34. Rd4 1/2-1/2